[Event "Early-Titled-Tuesday-Blitz-August-29-2023"]
[Site "Chess.com"]
[Date "2023.08.29"]
[Round "11"]
[White "CSB7"]
[Black "jaskol95"]
[Result "1-0"]
[WhiteElo "2699"]
[BlackElo "2572"]
[TimeControl "180+1"]
[EndTime "10:05:22 PDT"]
[Termination "CSB7 won by checkmate"]

1. e4 {[%clk 0:02:58.1]} 1... d5 {[%clk 0:03:00]} 2. exd5 {[%clk 0:02:56.8]}
2... Nf6 {[%clk 0:03:00.6]} 3. Nf3 {[%clk 0:02:54.9]} 3... Bg4 {[%clk
0:03:00.5]} 4. Bb5+ {[%clk 0:02:52.7]} 4... Nbd7 {[%clk 0:02:57]} 5. h3 {[%clk
0:02:39.9]} 5... Bh5 {[%clk 0:02:55.2]} 6. Nc3 {[%clk 0:02:12.3]} 6... a6 {[%clk
0:02:55.3]} 7. Be2 {[%clk 0:01:53.9]} 7... Nb6 {[%clk 0:02:51.5]} 8. O-O {[%clk
0:01:47]} 8... Nbxd5 {[%clk 0:02:51.6]} 9. Nxd5 {[%clk 0:01:46.8]} 9... Qxd5
{[%clk 0:02:50.8]} 10. c4 {[%clk 0:01:40.5]} 10... Qc6 {[%clk 0:02:34.5]} 11. d4
{[%clk 0:01:24.6]} 11... Bxf3 {[%clk 0:02:22.7]} 12. Bxf3 {[%clk 0:01:24]} 12...
Qxc4 {[%clk 0:02:23.1]} 13. Bxb7 {[%clk 0:01:11.8]} 13... Rd8 {[%clk 0:02:09.6]}
14. Qf3 {[%clk 0:00:55.3]} 14... Nd5 {[%clk 0:01:52.3]} 15. a4 {[%clk
0:00:46.1]} 15... e6 {[%clk 0:01:49.1]} 16. b3 {[%clk 0:00:41.9]} 16... Qc2
{[%clk 0:01:24.9]} 17. Bg5 {[%clk 0:00:40.2]} 17... Be7 {[%clk 0:01:17.8]} 18.
Rac1 {[%clk 0:00:34.2]} 18... Qg6 {[%clk 0:01:16.9]} 19. Bxe7 {[%clk 0:00:24.7]}
19... Nxe7 {[%clk 0:01:03.7]} 20. Rxc7 {[%clk 0:00:25.1]} 20... Qf5 {[%clk
0:00:55]} 21. Qxf5 {[%clk 0:00:17.4]} 21... Nxf5 {[%clk 0:00:55.9]} 22. Rd1
{[%clk 0:00:17.1]} 22... Nxd4 {[%clk 0:00:51.5]} 23. Bxa6 {[%clk 0:00:12.1]}
23... Nf3+ {[%clk 0:00:50.9]} 24. gxf3 {[%clk 0:00:12.3]} 24... Rxd1+ {[%clk
0:00:51.2]} 25. Kg2 {[%clk 0:00:13.2]} 25... O-O {[%clk 0:00:50.2]} 26. a5
{[%clk 0:00:09.9]} 26... Ra1 {[%clk 0:00:25.9]} 27. b4 {[%clk 0:00:09.6]} 27...
Rb8 {[%clk 0:00:24.4]} 28. Bb7 {[%clk 0:00:09.8]} 28... Kf8 {[%clk 0:00:20.7]}
29. a6 {[%clk 0:00:09.8]} 29... g6 {[%clk 0:00:14.8]} 30. b5 {[%clk 0:00:07.1]}
30... Ra5 {[%clk 0:00:13.7]} 31. b6 {[%clk 0:00:04.9]} 31... Rxa6 {[%clk
0:00:14.3]} 32. Bxa6 {[%clk 0:00:05.8]} 32... Rxb6 {[%clk 0:00:15]} 33. Bf1
{[%clk 0:00:06.2]} 33... Kg7 {[%clk 0:00:15.5]} 34. Rc1 {[%clk 0:00:06.1]} 34...
h6 {[%clk 0:00:16]} 35. Bd3 {[%clk 0:00:06.2]} 35... Rb3 {[%clk 0:00:15.2]} 36.
Bf1 {[%clk 0:00:05.5]} 36... g5 {[%clk 0:00:14.5]} 37. Rc7 {[%clk 0:00:05.1]}
37... Kf6 {[%clk 0:00:14.4]} 38. Bc4 {[%clk 0:00:04.7]} 38... Rc3 {[%clk
0:00:12.5]} 39. Rc8 {[%clk 0:00:05.2]} 39... Ra3 {[%clk 0:00:12.5]} 40. Bf1
{[%clk 0:00:04.1]} 40... Kg6 {[%clk 0:00:12.5]} 41. Rg8+ {[%clk 0:00:04.3]}
41... Kf6 {[%clk 0:00:12.9]} 42. Rh8 {[%clk 0:00:04.3]} 42... Kg7 {[%clk
0:00:13]} 43. Rd8 {[%clk 0:00:04.5]} 43... Kf6 {[%clk 0:00:13.5]} 44. Rd3 {[%clk
0:00:05]} 44... Ra4 {[%clk 0:00:13.3]} 45. Kg3 {[%clk 0:00:05.2]} 45... Kg7
{[%clk 0:00:13.1]} 46. Re3 {[%clk 0:00:05.5]} 46... Kf6 {[%clk 0:00:13.3]} 47.
Re4 {[%clk 0:00:05.2]} 47... Ra3 {[%clk 0:00:13.7]} 48. Bg2 {[%clk 0:00:04.9]}
48... Ra2 {[%clk 0:00:13.5]} 49. h4 {[%clk 0:00:04.9]} 49... Kg6 {[%clk
0:00:12]} 50. hxg5 {[%clk 0:00:05]} 50... hxg5 {[%clk 0:00:12.9]} 51. f4 {[%clk
0:00:04.6]} 51... gxf4+ {[%clk 0:00:10.3]} 52. Rxf4 {[%clk 0:00:05.5]} 52... f6
{[%clk 0:00:08.9]} 53. Rf3 {[%clk 0:00:05.4]} 53... f5 {[%clk 0:00:07.2]} 54.
Rc3 {[%clk 0:00:03]} 54... Kf6 {[%clk 0:00:07.5]} 55. Rc6 {[%clk 0:00:02.8]}
55... Rd2 {[%clk 0:00:06.9]} 56. Bf3 {[%clk 0:00:03]} 56... Rd3 {[%clk
0:00:07.1]} 57. Kg2 {[%clk 0:00:03.6]} 57... Rd4 {[%clk 0:00:07.4]} 58. Ra6
{[%clk 0:00:03.8]} 58... Rd3 {[%clk 0:00:07.6]} 59. Be2 {[%clk 0:00:04.1]} 59...
Rd4 {[%clk 0:00:07.7]} 60. f3 {[%clk 0:00:04]} 60... Rb4 {[%clk 0:00:07.4]} 61.
Kf2 {[%clk 0:00:04.5]} 61... Rb2 {[%clk 0:00:07.4]} 62. Ke3 {[%clk 0:00:04.2]}
62... Rb3+ {[%clk 0:00:08]} 63. Kf2 {[%clk 0:00:04.5]} 63... Rb4 {[%clk
0:00:08.5]} 64. Ra3 {[%clk 0:00:04.4]} 64... Ke5 {[%clk 0:00:08.1]} 65. Ke3
{[%clk 0:00:04.3]} 65... Kf6 {[%clk 0:00:07.6]} 66. f4 {[%clk 0:00:04.3]} 66...
Rb6 {[%clk 0:00:05.3]} 67. Kf3 {[%clk 0:00:04.8]} 67... e5 {[%clk 0:00:05.1]}
68. fxe5+ {[%clk 0:00:04.3]} 68... Kxe5 {[%clk 0:00:06]} 69. Bd3 {[%clk
0:00:04.7]} 69... Kf6 {[%clk 0:00:03.5]} 70. Ra5 {[%clk 0:00:04.5]} 70... f4
{[%clk 0:00:03.8]} 71. Kxf4 {[%clk 0:00:04.1]} 71... Rb4+ {[%clk 0:00:04.5]} 72.
Be4 {[%clk 0:00:04.3]} 72... Ke6 {[%clk 0:00:05]} 73. Ra6+ {[%clk 0:00:04.3]}
73... Kd7 {[%clk 0:00:05.5]} 74. Ke5 {[%clk 0:00:04.5]} 74... Rb2 {[%clk
0:00:05.5]} 75. Ra7+ {[%clk 0:00:03.1]} 75... Kc8 {[%clk 0:00:05.6]} 76. Kd6
{[%clk 0:00:02.9]} 76... Rd2+ {[%clk 0:00:02.4]} 77. Bd5 {[%clk 0:00:02.8]}
77... Rb2 {[%clk 0:00:03.2]} 78. Rg7 {[%clk 0:00:02.2]} 78... Kb8 {[%clk
0:00:03.1]} 79. Rg8+ {[%clk 0:00:02.4]} 79... Ka7 {[%clk 0:00:03.6]} 80. Ra8+
{[%clk 0:00:03.3]} 80... Kb6 {[%clk 0:00:04.2]} 81. Rb8+ {[%clk 0:00:04.2]}
81... Ka6 {[%clk 0:00:04.8]} 82. Rxb2 {[%clk 0:00:04.9]} 82... Ka7 {[%clk
0:00:05.3]} 83. Kc7 {[%clk 0:00:04.8]} 83... Ka6 {[%clk 0:00:05.9]} 84. Kc6
{[%clk 0:00:05.2]} 84... Ka5 {[%clk 0:00:06.6]} 85. Kc5 {[%clk 0:00:05.7]} 85...
Ka4 {[%clk 0:00:07.2]} 86. Ra2# {[%clk 0:00:05.9]} 1-0

[Event "Early-Titled-Tuesday-Blitz-August-29-2023"]
[Site "Chess.com"]
[Date "2023.08.29"]
[Round "11"]
[White "ChainedDowntohell"]
[Black "WildTricks"]
[Result "1-0"]
[WhiteElo "2565"]
[BlackElo "2639"]
[TimeControl "180+1"]
[EndTime "10:05:31 PDT"]
[Termination "ChainedDowntohell won by checkmate"]

1. Nf3 {[%clk 0:02:59.9]} 1... Nf6 {[%clk 0:02:58.6]} 2. b3 {[%clk 0:02:59.9]}
2... g6 {[%clk 0:02:56.9]} 3. Bb2 {[%clk 0:02:59.7]} 3... Bg7 {[%clk 0:02:57.5]}
4. g3 {[%clk 0:02:51.5]} 4... b6 {[%clk 0:02:56.7]} 5. Bg2 {[%clk 0:02:50.8]}
5... Bb7 {[%clk 0:02:57.3]} 6. O-O {[%clk 0:02:50.6]} 6... O-O {[%clk
0:02:57.1]} 7. c4 {[%clk 0:02:50.8]} 7... e6 {[%clk 0:02:42.9]} 8. Qc2 {[%clk
0:02:45.9]} 8... d5 {[%clk 0:02:40]} 9. cxd5 {[%clk 0:02:40.1]} 9... exd5 {[%clk
0:02:38.9]} 10. e3 {[%clk 0:02:36.4]} 10... Nbd7 {[%clk 0:02:37]} 11. Nc3 {[%clk
0:02:35.9]} 11... a6 {[%clk 0:02:35.5]} 12. Rac1 {[%clk 0:02:35.5]} 12... Qe7
{[%clk 0:02:34.1]} 13. Ne2 {[%clk 0:02:32.8]} 13... c5 {[%clk 0:02:31.3]} 14. d4
{[%clk 0:02:32.3]} 14... Rac8 {[%clk 0:02:30.2]} 15. dxc5 {[%clk 0:02:29.2]}
15... bxc5 {[%clk 0:02:25.9]} 16. Rfd1 {[%clk 0:02:21.8]} 16... Rfd8 {[%clk
0:02:25.5]} 17. Nf4 {[%clk 0:02:18.6]} 17... h6 {[%clk 0:01:58.7]} 18. Qb1
{[%clk 0:02:17.4]} 18... Nf8 {[%clk 0:01:43]} 19. Ne5 {[%clk 0:02:13.8]} 19...
Ne4 {[%clk 0:01:36.1]} 20. Bxe4 {[%clk 0:02:05.8]} 20... dxe4 {[%clk 0:01:31.2]}
21. Nc4 {[%clk 0:02:01.9]} 21... Bxb2 {[%clk 0:01:17.1]} 22. Qxb2 {[%clk
0:02:01.4]} 22... h5 {[%clk 0:01:12.1]} 23. Kg2 {[%clk 0:01:43.5]} 23... h4
{[%clk 0:01:09.7]} 24. g4 {[%clk 0:01:41.2]} 24... Nh7 {[%clk 0:01:05.9]} 25.
Nb6 {[%clk 0:01:31.1]} 25... Rb8 {[%clk 0:00:55.6]} 26. h3 {[%clk 0:01:30.5]}
26... Rxd1 {[%clk 0:00:29.2]} 27. Rxd1 {[%clk 0:01:29]} 27... Rd8 {[%clk
0:00:29.6]} 28. Nbd5 {[%clk 0:01:15.6]} 28... Qf8 {[%clk 0:00:15.3]} 29. Qe5
{[%clk 0:01:12.5]} 29... Re8 {[%clk 0:00:10.7]} 30. Qc7 {[%clk 0:00:54.2]} 30...
Ba8 {[%clk 0:00:10.8]} 31. Nb6 {[%clk 0:00:51.1]} 31... Ng5 {[%clk 0:00:08.4]}
32. Rd7 {[%clk 0:00:50.3]} 32... Kg7 {[%clk 0:00:04.6]} 33. Nxa8 {[%clk
0:00:44.9]} 33... Rxa8 {[%clk 0:00:05.5]} 34. Qe5+ {[%clk 0:00:45.3]} 34... Kh6
{[%clk 0:00:06.2]} 35. Rd5 {[%clk 0:00:36.9]} 35... f6 {[%clk 0:00:03.5]} 36.
Qd6 {[%clk 0:00:31.2]} 36... Qxd6 {[%clk 0:00:02.6]} 37. Rxd6 {[%clk 0:00:32.1]}
37... Kg7 {[%clk 0:00:01.5]} 38. Rd7+ {[%clk 0:00:30.3]} 38... Kh6 {[%clk
0:00:01.7]} 39. Nd5 {[%clk 0:00:28]} 39... f5 {[%clk 0:00:01.8]} 40. Rd6 {[%clk
0:00:10.5]} 40... fxg4 {[%clk 0:00:01.3]} 41. hxg4 {[%clk 0:00:10.8]} 41... h3+
{[%clk 0:00:01.7]} 42. Kg3 {[%clk 0:00:10.4]} 42... Rf8 {[%clk 0:00:02.4]} 43.
Nf4 {[%clk 0:00:10.3]} 43... Rg8 {[%clk 0:00:02.1]} 44. Rc6 {[%clk 0:00:10]}
44... Kh7 {[%clk 0:00:01.5]} 45. Nxh3 {[%clk 0:00:09.5]} 45... Nxh3 {[%clk
0:00:02]} 46. Kxh3 {[%clk 0:00:10.4]} 46... Rf8 {[%clk 0:00:02.6]} 47. Kg3
{[%clk 0:00:10.3]} 47... Rf3+ {[%clk 0:00:02.9]} 48. Kg2 {[%clk 0:00:10.7]}
48... Kh6 {[%clk 0:00:03.8]} 49. Rxc5 {[%clk 0:00:10.7]} 49... Rf7 {[%clk
0:00:03.8]} 50. Kg3 {[%clk 0:00:10.3]} 50... Rd7 {[%clk 0:00:03.9]} 51. Rc6
{[%clk 0:00:08.5]} 51... Rd1 {[%clk 0:00:03.4]} 52. Kg2 {[%clk 0:00:06.2]} 52...
Kg5 {[%clk 0:00:01.9]} 53. Rxa6 {[%clk 0:00:06.5]} 53... Rd2 {[%clk 0:00:01.3]}
54. Kg3 {[%clk 0:00:06.2]} 54... Rd1 {[%clk 0:00:01.8]} 55. Ra5+ {[%clk
0:00:06.7]} 55... Kh6 {[%clk 0:00:02.5]} 56. b4 {[%clk 0:00:05.4]} 56... Rg1+
{[%clk 0:00:02.9]} 57. Kf4 {[%clk 0:00:05.7]} 57... Rb1 {[%clk 0:00:02.2]} 58.
a3 {[%clk 0:00:04]} 58... Rb2 {[%clk 0:00:03.1]} 59. Kxe4 {[%clk 0:00:03.8]}
59... Rxf2 {[%clk 0:00:03.5]} 60. Ra8 {[%clk 0:00:03]} 60... Rg2 {[%clk
0:00:04.1]} 61. Kf3 {[%clk 0:00:03]} 61... Rg1 {[%clk 0:00:02.9]} 62. b5 {[%clk
0:00:03.5]} 62... Rf1+ {[%clk 0:00:03.2]} 63. Ke2 {[%clk 0:00:03.3]} 63... Rb1
{[%clk 0:00:04.1]} 64. a4 {[%clk 0:00:03.4]} 64... Kg5 {[%clk 0:00:05]} 65. Kf3
{[%clk 0:00:03.8]} 65... Rf1+ {[%clk 0:00:04.7]} 66. Ke2 {[%clk 0:00:04.4]}
66... Rb1 {[%clk 0:00:05.6]} 67. Ra6 {[%clk 0:00:03.9]} 67... Rb4 {[%clk
0:00:05.2]} 68. b6 {[%clk 0:00:04]} 68... Kxg4 {[%clk 0:00:05.1]} 69. a5 {[%clk
0:00:04.6]} 69... Kf5 {[%clk 0:00:04.7]} 70. Ra7 {[%clk 0:00:04.8]} 70... Ke4
{[%clk 0:00:04.3]} 71. b7 {[%clk 0:00:05.2]} 71... Rb2+ {[%clk 0:00:04.5]} 72.
Kd1 {[%clk 0:00:05.6]} 72... Kd3 {[%clk 0:00:04.5]} 73. Kc1 {[%clk 0:00:05.3]}
73... Rb5 {[%clk 0:00:02.8]} 74. a6 {[%clk 0:00:05.3]} 74... Kc3 {[%clk
0:00:02.2]} 75. Ra8 {[%clk 0:00:04.9]} 75... Ra5 {[%clk 0:00:02.8]} 76. Kd1
{[%clk 0:00:04.4]} 76... Kd3 {[%clk 0:00:03.1]} 77. Ke1 {[%clk 0:00:04.8]} 77...
Kxe3 {[%clk 0:00:03.5]} 78. Re8+ {[%clk 0:00:04.9]} 78... Kf3 {[%clk 0:00:03.5]}
79. b8=Q {[%clk 0:00:05.5]} 79... Ra1+ {[%clk 0:00:03.3]} 80. Kd2 {[%clk
0:00:06]} 80... Ra2+ {[%clk 0:00:04.2]} 81. Kc1 {[%clk 0:00:06.4]} 81... Rxa6
{[%clk 0:00:05.1]} 82. Qb7+ {[%clk 0:00:06.3]} 82... Kf4 {[%clk 0:00:04.6]} 83.
Qxa6 {[%clk 0:00:06.5]} 83... Kg5 {[%clk 0:00:05.2]} 84. Qe6 {[%clk 0:00:06.5]}
84... Kh4 {[%clk 0:00:06.1]} 85. Qxg6 {[%clk 0:00:06.1]} 85... Kh3 {[%clk
0:00:05.3]} 86. Rh8# {[%clk 0:00:07]} 1-0

[Event "Early-Titled-Tuesday-Blitz-August-29-2023"]
[Site "Chess.com"]
[Date "2023.08.29"]
[Round "11"]
[White "XDPS"]
[Black "Andreikka"]
[Result "1/2-1/2"]
[WhiteElo "2871"]
[BlackElo "3033"]
[TimeControl "180+1"]
[EndTime "10:05:41 PDT"]
[Termination "Game drawn - insufficient material"]

1. e4 {[%clk 0:03:00.9]} 1... e5 {[%clk 0:02:59.6]} 2. Nf3 {[%clk 0:03:00.8]}
2... Nc6 {[%clk 0:02:59.3]} 3. Bb5 {[%clk 0:03:00]} 3... a6 {[%clk 0:02:59.7]}
4. Ba4 {[%clk 0:03:00.2]} 4... Nf6 {[%clk 0:02:59.9]} 5. Nc3 {[%clk 0:03:00.3]}
5... Bc5 {[%clk 0:02:58.8]} 6. O-O {[%clk 0:02:59.4]} 6... b5 {[%clk 0:02:58.2]}
7. Bb3 {[%clk 0:02:59.4]} 7... O-O {[%clk 0:02:59.1]} 8. Nd5 {[%clk 0:02:58.3]}
8... Nxe4 {[%clk 0:02:59.2]} 9. d3 {[%clk 0:02:57.3]} 9... Nf6 {[%clk
0:02:59.3]} 10. Bg5 {[%clk 0:02:57]} 10... Be7 {[%clk 0:02:59]} 11. Nxe7+ {[%clk
0:02:57]} 11... Qxe7 {[%clk 0:02:58.6]} 12. a4 {[%clk 0:02:57.7]} 12... Bb7
{[%clk 0:02:55]} 13. Re1 {[%clk 0:02:57.4]} 13... h6 {[%clk 0:02:50.4]} 14. Bh4
{[%clk 0:02:57.4]} 14... Qd6 {[%clk 0:02:45]} 15. Bg3 {[%clk 0:02:49.2]} 15...
Rae8 {[%clk 0:02:42.1]} 16. axb5 {[%clk 0:02:48.9]} 16... axb5 {[%clk
0:02:42.4]} 17. d4 {[%clk 0:02:48.5]} 17... Nxd4 {[%clk 0:02:42.2]} 18. Nxd4
{[%clk 0:02:40.8]} 18... Qxd4 {[%clk 0:02:41.8]} 19. Qxd4 {[%clk 0:02:40.6]}
19... exd4 {[%clk 0:02:41.6]} 20. Bxc7 {[%clk 0:02:39.8]} 20... Rxe1+ {[%clk
0:02:37.1]} 21. Rxe1 {[%clk 0:02:39.4]} 21... Bd5 {[%clk 0:02:34.9]} 22. Rd1
{[%clk 0:02:14.7]} 22... Re8 {[%clk 0:02:04.7]} 23. Kf1 {[%clk 0:02:10.2]} 23...
Bxb3 {[%clk 0:01:29.4]} 24. cxb3 {[%clk 0:02:11.1]} 24... Nd5 {[%clk 0:01:22.2]}
25. Bd6 {[%clk 0:02:11.2]} 25... Re4 {[%clk 0:01:20.9]} 26. Bc5 {[%clk
0:02:11.3]} 26... f6 {[%clk 0:01:20]} 27. Bxd4 {[%clk 0:02:11]} 27... Kf7 {[%clk
0:01:19.8]} 28. f3 {[%clk 0:02:07.1]} 28... Re8 {[%clk 0:01:06.1]} 29. Kf2
{[%clk 0:01:32.9]} 29... Rc8 {[%clk 0:01:04.4]} 30. Rd2 {[%clk 0:01:32.7]} 30...
g5 {[%clk 0:01:01.2]} 31. Ba7 {[%clk 0:01:21.5]} 31... Ke6 {[%clk 0:01:00]} 32.
Re2+ {[%clk 0:01:21.5]} 32... Kd6 {[%clk 0:00:59.9]} 33. Bd4 {[%clk 0:01:21.8]}
33... h5 {[%clk 0:00:58.3]} 34. Rd2 {[%clk 0:01:15.1]} 34... Ke6 {[%clk
0:00:58.6]} 35. Re2+ {[%clk 0:01:11.6]} 35... Kf5 {[%clk 0:00:57.9]} 36. g3
{[%clk 0:01:08.9]} 36... Rc1 {[%clk 0:00:44.3]} 37. Rd2 {[%clk 0:01:08.3]} 37...
g4 {[%clk 0:00:29.4]} 38. Kg2 {[%clk 0:00:44.2]} 38... Ke6 {[%clk 0:00:12.5]}
39. h3 {[%clk 0:00:41.7]} 39... gxf3+ {[%clk 0:00:06.3]} 40. Kxf3 {[%clk
0:00:42.2]} 40... Ne7 {[%clk 0:00:06.5]} 41. Bc3 {[%clk 0:00:38.3]} 41... Nc6
{[%clk 0:00:06.1]} 42. b4 {[%clk 0:00:36.8]} 42... Ne5+ {[%clk 0:00:05.7]} 43.
Kg2 {[%clk 0:00:37.5]} 43... d5 {[%clk 0:00:04.8]} 44. Rf2 {[%clk 0:00:34.3]}
44... Rd1 {[%clk 0:00:04.5]} 45. Rf4 {[%clk 0:00:26.6]} 45... Rd3 {[%clk
0:00:04.5]} 46. Rh4 {[%clk 0:00:21.7]} 46... Nc6 {[%clk 0:00:05.3]} 47. Rxh5
{[%clk 0:00:20.5]} 47... d4 {[%clk 0:00:05.8]} 48. Be1 {[%clk 0:00:21.3]} 48...
Ne5 {[%clk 0:00:06.7]} 49. Rh8 {[%clk 0:00:20.8]} 49... Rb3 {[%clk 0:00:05]} 50.
Rd8 {[%clk 0:00:16.4]} 50... Rxb2+ {[%clk 0:00:05.5]} 51. Kf1 {[%clk 0:00:16.4]}
51... Nf3 {[%clk 0:00:05.3]} 52. Bf2 {[%clk 0:00:14.9]} 52... Ke5 {[%clk
0:00:04.7]} 53. h4 {[%clk 0:00:12.7]} 53... Ke4 {[%clk 0:00:03.2]} 54. h5 {[%clk
0:00:11.6]} 54... d3 {[%clk 0:00:02.9]} 55. h6 {[%clk 0:00:10.4]} 55... Ng5
{[%clk 0:00:03.5]} 56. Rd4+ {[%clk 0:00:09.4]} 56... Kf5 {[%clk 0:00:03.6]} 57.
Rxd3 {[%clk 0:00:09.3]} 57... Rxb4 {[%clk 0:00:04.3]} 58. Rd5+ {[%clk
0:00:09.7]} 58... Kg6 {[%clk 0:00:04.8]} 59. Rd6 {[%clk 0:00:09.7]} 59... Ne4
{[%clk 0:00:03.6]} 60. Re6 {[%clk 0:00:04.3]} 60... Rb1+ {[%clk 0:00:02.4]} 61.
Kg2 {[%clk 0:00:04.7]} 61... Ng5 {[%clk 0:00:02.8]} 62. Rc6 {[%clk 0:00:04.2]}
62... Rb2 {[%clk 0:00:03.5]} 63. Kf1 {[%clk 0:00:03.7]} 63... Ne4 {[%clk
0:00:04]} 64. Be3 {[%clk 0:00:03.9]} 64... Nxg3+ {[%clk 0:00:04.5]} 65. Kg1
{[%clk 0:00:04.6]} 65... Nf5 {[%clk 0:00:04.1]} 66. Bf4 {[%clk 0:00:04.7]} 66...
Rb4 {[%clk 0:00:03.6]} 67. Be5 {[%clk 0:00:04.3]} 67... Rg4+ {[%clk 0:00:02.3]}
68. Kf2 {[%clk 0:00:04.3]} 68... Kxh6 {[%clk 0:00:02.7]} 69. Rxf6+ {[%clk
0:00:04.6]} 69... Kg5 {[%clk 0:00:02.9]} 70. Rb6 {[%clk 0:00:05.3]} 70... b4
{[%clk 0:00:03.7]} 71. Kf3 {[%clk 0:00:04.8]} 71... Rc4 {[%clk 0:00:03.7]} 72.
Kf2 {[%clk 0:00:04]} 72... Kg4 {[%clk 0:00:03.9]} 73. Bb8 {[%clk 0:00:02.6]}
73... Rc2+ {[%clk 0:00:02.7]} 74. Ke1 {[%clk 0:00:02.7]} 74... Rb2 {[%clk
0:00:03.6]} 75. Kd1 {[%clk 0:00:02.5]} 75... Nd4 {[%clk 0:00:03.2]} 76. Kc1
{[%clk 0:00:02.7]} 76... Rc2+ {[%clk 0:00:03.1]} 77. Kb1 {[%clk 0:00:03.4]}
77... Rc4 {[%clk 0:00:03.1]} 78. Bd6 {[%clk 0:00:03.2]} 78... b3 {[%clk
0:00:03.8]} 79. Rb4 {[%clk 0:00:03.8]} 79... Rxb4 {[%clk 0:00:02.3]} 80. Bxb4
{[%clk 0:00:04.7]} 80... Kf3 {[%clk 0:00:03]} 81. Kb2 {[%clk 0:00:05.6]} 81...
Ke4 {[%clk 0:00:03.1]} 82. Bc3 {[%clk 0:00:06.5]} 82... Kd3 {[%clk 0:00:03.7]}
83. Bxd4 {[%clk 0:00:06.9]} 83... Kxd4 {[%clk 0:00:04.6]} 84. Kxb3 {[%clk
0:00:07.8]} 1/2-1/2